fUSD/lending_fUSD_20240329
["ID","MTS","AMOUNT","RATE_DAILY","PERIOD"]
[320995652,1711733440039,-500.0,0.00052054,120]
[320995654,1711733440049,-500.0,0.00052054,120]
[320995656,1711733440059,-500.0,0.00052054,120]
[320995658,1711733440069,-500.0,0.00052054,120]
[320995660,1711733440079,-500.0,0.00052054,120]
[320995662,1711733440089,-509.68489569,0.00052054,120]
[320995664,1711733440100,-500.0,0.00052054,120]
[320995666,1711733440110,-500.0,0.00052054,120]
[320995669,1711733440120,-500.0,0.00052054,120]
[320995671,1711733440130,-500.0,0.00052054,120]
[320995673,1711733440140,-500.0,0.00052054,120]
[320995675,1711733440149,-460.94,0.00052054,120]
[320995677,1711733440159,-500.0,0.00052054,120]
[320995679,1711733440169,-500.0,0.00052054,120]
[320995681,1711733440179,-500.0,0.00052054,120]
[320995683,1711733440190,-500.0,0.00052054,2]
[320995685,1711733440203,-500.0,0.00052054,2]
[320995687,1711733440212,-500.0,0.00052054,120]
[320995689,1711733440224,-500.0,0.00052054,120]
[320995692,1711733440235,-500.0,0.00052054,120]
[320995694,1711733440245,-500.0,0.00052054,120]
[320995696,1711733440254,-526.34439563,0.00052054,120]
[320995698,1711733440264,-503.57204277,0.00052054,120]
[320995700,1711733440274,-500.0,0.00052054,120]
[320995702,1711733440287,-500.0,0.00052054,120]
[320995713,1711733440538,-512.91193217,0.00052054,120]
[320995714,1711733440548,-548.69,0.00052054,120]
[320995715,1711733440558,-500.0,0.00052054,120]
[320995716,1711733440567,-500.0,0.00052054,120]
[320995717,1711733440577,-500.0,0.00052054,120]
[320995718,1711733440587,-500.0,0.00052054,120]
[320995719,1711733440597,-500.0,0.00052054,120]
[320995720,1711733440608,-525.06283308,0.00052054,120]
[320995721,1711733440619,-550.10675628,0.00052054,120]
[320995722,1711733440630,-682.17,0.00052054,120]
[320995723,1711733440641,-500.0,0.00052054,120]
[320995724,1711733440651,-500.0,0.00052054,120]
[320995725,1711733440663,-500.0,0.00052054,120]
[320995726,1711733440674,-500.0,0.00052054,120]
[320995727,1711733440684,-500.0,0.00052054,120]
[320995728,1711733440694,-500.0,0.00052054,120]
[320995729,1711733440705,-500.0,0.00052054,2]
[320995730,1711733440716,-500.0,0.00052054,120]
[320995732,1711733440728,-500.0,0.00052054,120]
[320995733,1711733440737,-500.0,0.00052054,120]
[320995734,1711733440747,-500.0,0.00052054,120]
[320995735,1711733440758,-500.0,0.00052054,120]
[320995736,1711733440768,-500.0,0.00052054,120]
[320995737,1711733440778,-500.0,0.00052054,120]
[320995738,1711733440787,-500.0,0.00052054,120]
[320995739,1711733440796,-500.0,0.00052054,120]
[320995740,1711733440805,-500.0,0.00052054,120]
[320995741,1711733440814,-500.0,0.00052054,120]
[320995742,1711733440823,-500.0,0.00052054,120]
[320995743,1711733440836,-500.0,0.00052054,120]
[320995744,1711733440847,-500.0,0.00052054,120]
[320995745,1711733440856,-500.0,0.00052054,120]
[320995746,1711733440866,-296.76964196,0.00052054,120]
[320995747,1711733440876,-500.0,0.00052054,120]
[320995748,1711733440885,-500.0,0.00052054,120]
[320995749,1711733440894,-500.0,0.00052054,120]
[320995750,1711733440903,-500.0,0.00052054,120]
[320995752,1711733440914,-500.0,0.00052054,120]
[320995753,1711733440924,-500.0,0.00052054,120]
[320995754,1711733440933,-500.0,0.00052054,120]
[320995755,1711733440943,-500.0,0.00052054,120]
[320995756,1711733440953,-500.0,0.00052054,120]
[320995757,1711733440962,-500.0,0.00052054,120]
[320995758,1711733440972,-500.0,0.00052054,120]
[320995759,1711733440982,-500.0,0.00052054,120]
[320995760,1711733440991,-500.0,0.00052054,120]
[320995761,1711733441001,-500.0,0.00052054,120]
[320995762,1711733441011,-500.0,0.00052054,120]
[320995763,1711733441020,-500.0,0.00052054,120]
[320995764,1711733441030,-500.0,0.00052054,120]
[320995765,1711733441039,-500.0,0.00052054,120]
[320995766,1711733441049,-500.0,0.00052054,120]
[320995767,1711733441059,-500.0,0.00052054,120]
[320995768,1711733441068,-500.0,0.00052054,120]
[320995769,1711733441078,-500.0,0.00052054,120]
[320995770,1711733441088,-500.0,0.00052054,120]
[320995771,1711733441098,-500.0,0.00052054,120]
[320995772,1711733441107,-500.0,0.00052054,120]
[320995773,1711733441116,-500.0,0.00052054,120]
[320995774,1711733441126,-500.0,0.00052054,120]
[320995775,1711733441136,-500.0,0.00052054,120]
[320995776,1711733441145,-500.0,0.00052054,120]
[320995777,1711733441158,-500.0,0.00052054,120]
[320995778,1711733441167,-500.0,0.00052054,120]
[320995779,1711733441177,-500.0,0.00052054,120]
[320995780,1711733441186,-439.83,0.00052054,120]
[320995781,1711733441195,-500.0,0.00052054,120]
[320995782,1711733441208,-339.79,0.00052054,120]
[320995783,1711733441217,-500.0,0.00052054,120]
[320995784,1711733441226,-500.0,0.00052054,120]
[320995785,1711733441235,-561.30692587,0.00052054,120]
[320995786,1711733441245,-500.0,0.00052054,120]
[320995787,1711733441254,-418.81291108,0.00052054,120]
[320995788,1711733441263,-500.0,0.00052054,120]
[320995789,1711733441272,-500.0,0.00052054,120]
[320995790,1711733441282,-1317.64,0.00052054,120]
[320995791,1711733441291,-500.0,0.00052054,120]
[320995792,1711733441300,-500.0,0.00052054,30]
[320995793,1711733441309,-500.0,0.00052054,120]
[320995794,1711733441318,-500.0,0.00052054,120]
[320995795,1711733441327,-500.0,0.00052054,120]
[320995796,1711733441336,-500.0,0.00052054,120]
[320995797,1711733441346,-500.0,0.00052054,120]
[320995798,1711733441355,-500.0,0.00052054,120]
[320995799,1711733441364,-500.0,0.00052054,120]
[320995800,1711733441373,-500.0,0.00052054,120]
[320995801,1711733441382,-500.0,0.00052054,120]
[320995802,1711733441392,-500.0,0.00052054,120]
[320995803,1711733441401,-500.0,0.00052054,120]
[320995804,1711733441410,-500.0,0.00052054,120]
[320995805,1711733441419,-500.0,0.00052054,120]
[320995806,1711733441429,-500.0,0.00052054,120]
[320995807,1711733441438,-500.0,0.00052054,120]
[320995808,1711733441447,-500.0,0.00052054,120]
[320995809,1711733441457,-513.6725944,0.00052054,120]
[320995810,1711733441468,-529.3271429,0.00052054,120]
[320995811,1711733441477,-500.0,0.00052054,120]
[320995812,1711733441486,-500.0,0.00052054,120]
[320995813,1711733441495,-500.0,0.00052054,120]
[320995814,1711733441505,-500.0,0.00052054,120]
[320995815,1711733441514,-500.0,0.00052054,120]
[320995816,1711733441523,-500.0,0.00052054,120]
[320995817,1711733441531,-500.0,0.00052054,120]
[320995818,1711733441540,-500.0,0.00052054,120]
[320995819,1711733441550,-500.0,0.00052054,120]
[320995820,1711733441559,-500.0,0.00052054,120]
[320995821,1711733441568,-500.0,0.00052054,120]
[320995822,1711733441577,-150.0,0.00052054,120]
[320995823,1711733441587,-500.0,0.00052054,120]
[320995824,1711733441596,-500.0,0.00052054,120]
[320995825,1711733441605,-500.0,0.00052054,120]
[320995826,1711733441614,-506.9077727,0.00052054,120]
[320995827,1711733441623,-500.0,0.00052054,120]
[320995828,1711733441633,-500.0,0.00052054,120]
[320995829,1711733441642,-500.0,0.00052054,120]
[320995830,1711733441651,-534.56471008,0.00052054,120]
[320995831,1711733441660,-500.0,0.00052054,120]
[320995832,1711733441670,-500.0,0.00052054,120]
[320995833,1711733441679,-500.0,0.00052054,120]
[320995834,1711733441688,-500.0,0.00052054,120]
[320995835,1711733441697,-500.0,0.00052054,120]
[320995836,1711733441706,-500.0,0.00052054,120]
[320995837,1711733441715,-500.0,0.00052054,120]
[320995838,1711733441725,-500.0,0.00052054,120]
[320995839,1711733441734,-500.0,0.00052054,120]
[320995840,1711733441744,-500.0,0.00052054,120]
[320995841,1711733441753,-500.0,0.00052054,120]
[320995842,1711733441762,-500.0,0.00052054,120]
[320995843,1711733441772,-500.0,0.00052054,120]
[320995844,1711733441781,-1000.19,0.00052054,120]
[320995845,1711733441790,-500.0,0.00052054,120]
[320995846,1711733441799,-500.0,0.00052054,120]
[320995847,1711733441808,-500.0,0.00052054,120]
[320995848,1711733441817,-500.0,0.00052054,120]
[320995849,1711733441826,-500.0,0.00052054,120]
[320995850,1711733441836,-500.0,0.00052054,120]
[320995851,1711733441845,-500.0,0.00052054,120]
[320995852,1711733441855,-500.0,0.00052054,120]
[320995853,1711733441864,-1066.34,0.00052054,120]
[320995854,1711733441874,-557.81,0.00052054,120]
[320995855,1711733441883,-500.0,0.00052054,120]
[320995856,1711733441893,-500.0,0.00052054,120]
[320995857,1711733441902,-500.0,0.00052054,120]
[320995858,1711733441911,-500.0,0.00052054,120]
[320995859,1711733441920,-500.0,0.00052054,120]
[320995860,1711733441929,-530.14707634,0.00052054,120]
[320995861,1711733441939,-500.0,0.00052054,120]
[320995862,1711733441949,-500.0,0.00052054,120]
[320995863,1711733441958,-500.0,0.00052054,120]
[320995864,1711733441969,-500.0,0.00052054,120]
[320995865,1711733441978,-500.0,0.00052054,120]
[320995866,1711733441988,-500.0,0.00052054,120]
[320995867,1711733441997,-500.0,0.00052054,120]
[320995868,1711733442007,-500.0,0.00052054,120]
[320995869,1711733442016,-500.0,0.00052054,120]
[320995870,1711733442025,-500.0,0.00052054,120]
[320995871,1711733442035,-500.0,0.00052054,120]
[320995872,1711733442045,-500.0,0.00052054,120]
[320995873,1711733442055,-500.0,0.00052054,120]
[320995874,1711733442064,-237.49,0.00052054,120]
[320995875,1711733442074,-500.0,0.00052054,120]
[320995876,1711733442083,-500.0,0.00052054,120]
[320995877,1711733442093,-500.0,0.00052054,120]
[320995878,1711733442103,-500.0,0.00052054,120]
[320995879,1711733442112,-500.0,0.00052054,120]
[320995880,1711733442122,-507.79938712,0.00052054,120]
[320995881,1711733442132,-500.0,0.00052054,120]
[320995882,1711733442142,-500.0,0.00052054,120]
[320995883,1711733442151,-550.51888371,0.00052054,120]
[320995884,1711733442161,-500.0,0.00052054,15]
[320995885,1711733442171,-500.0,0.00052054,120]
[320995886,1711733442181,-500.0,0.00052054,120]
[320995887,1711733442191,-500.0,0.00052054,120]
[320995888,1711733442204,-500.0,0.00052054,120]
[320995889,1711733442215,-500.0,0.00052054,120]
[320995890,1711733442226,-500.0,0.00052054,120]
[320995891,1711733442236,-500.0,0.00052054,120]
[320995892,1711733442245,-500.0,0.00052054,120]
[320995893,1711733442255,-500.0,0.00052054,120]
[320995894,1711733442264,-1812.78,0.00052054,120]
[320995895,1711733442274,-500.0,0.00052054,120]
[320995896,1711733442286,-500.0,0.00052054,120]
[320995897,1711733442295,-500.0,0.00052054,120]
[320995898,1711733442305,-500.0,0.00052054,120]
[320995899,1711733442315,-500.0,0.00052054,120]
[320995900,1711733442324,-962.05,0.00052054,120]
[320995901,1711733442334,-500.0,0.00052054,120]
[320995902,1711733442343,-500.0,0.00052054,120]
[320995903,1711733442353,-500.0,0.00052054,120]
[320995904,1711733442363,-500.0,0.00052054,120]
[320995905,1711733442373,-4256.61,0.00052054,120]
[320995906,1711733442382,-500.0,0.00052054,120]
[320995907,1711733442392,-10575.43,0.00052054,120]
[320995908,1711733442402,-525.04838931,0.00052054,120]
[320995909,1711733442412,-500.0,0.00052054,120]
[320995910,1711733442421,-1006.62,0.00052054,120]
[320995911,1711733442431,-1583.74,0.00052054,120]
[320995912,1711733442441,-500.0,0.00052054,80]
[320995913,1711733442451,-500.0,0.00052054,120]
[320995915,1711733442460,-500.0,0.00052054,120]
[320995917,1711733442470,-500.0,0.00052054,120]
[320995918,1711733442480,-500.0,0.00052054,120]
[320995919,1711733442489,-1390.77,0.00052054,120]
[320995920,1711733442499,-500.0,0.00052054,120]
[320995921,1711733442509,-500.0,0.00052054,120]
[320995922,1711733442519,-603.57,0.00052054,120]
[320995923,1711733442529,-500.0,0.00052054,120]
[320995924,1711733442538,-500.0,0.00052054,120]
[320995925,1711733442548,-553.66,0.00052054,120]
[320995926,1711733442558,-2082.3,0.00052054,120]
[320995927,1711733442568,-500.0,0.00052054,120]
[320995928,1711733442577,-500.0,0.00052054,120]
[320995929,1711733442587,-396.97689473,0.00052054,120]
[320995930,1711733442596,-1162.15,0.00052054,120]
[320995931,1711733442605,-500.0,0.00052054,120]
[320995932,1711733442614,-500.0,0.00052054,120]
[320995933,1711733442624,-500.0,0.00052054,120]
[320995934,1711733442633,-1149.91,0.00052054,120]
[320995935,1711733442642,-3044.89,0.00052054,120]
[320995936,1711733442652,-529.39,0.00052054,120]
[320995937,1711733442661,-500.0,0.00052054,120]
[320995938,1711733442670,-500.0,0.00052054,120]
[320995939,1711733442680,-2497.8,0.00052054,120]
[320995940,1711733442689,-500.0,0.00052054,120]
[320995941,1711733442699,-500.0,0.00052054,120]
[320995942,1711733442709,-638.25,0.00052054,120]
[320995943,1711733442717,-695.29,0.00052054,120]
[320995944,1711733442727,-500.0,0.00052054,120]
[320995945,1711733442737,-791.02,0.00052054,120]
[320995946,1711733442746,-500.0,0.00052054,120]
[320995947,1711733442755,-594.68,0.00052054,120]
[320995948,1711733442765,-677.14,0.00052054,120]
[320995949,1711733442774,-500.0,0.00052054,120]
[320995950,1711733442783,-528.88,0.00052054,120]
[320995951,1711733442793,-500.0,0.00052054,120]
[320995952,1711733442802,-500.0,0.00052054,120]
[320995953,1711733442812,-500.0,0.00052054,60]
[320995954,1711733442824,-500.0,0.00052054,120]
[320995955,1711733442833,-500.0,0.00052054,120]
[320995956,1711733442842,-2175.4,0.00052054,120]
[320995957,1711733442851,-2524.05,0.00052054,120]
[320995958,1711733442904,-500.0,0.00052054,120]
[320995959,1711733442914,-500.0,0.00052054,120]
[320995960,1711733442923,-500.0,0.00052054,120]
[320995961,1711733442933,-500.0,0.00052054,120]
[320995962,1711733442942,-500.0,0.00052054,120]
[320995963,1711733442954,-500.0,0.00052054,120]
[320995964,1711733442964,-529.16,0.00052054,120]
[320995965,1711733442976,-576.86,0.00052054,120]
[320995966,1711733442985,-976.23,0.00052054,120]
[320995967,1711733442995,-1786.52,0.00052054,120]
[320995968,1711733443005,-500.0,0.00052054,120]
[320995969,1711733443015,-942.0,0.00052054,120]
[320995970,1711733443025,-1512.02,0.00052054,120]
[320995971,1711733443034,-500.0,0.00052054,120]
[320995972,1711733443044,-2142.29,0.00052054,120]
[320995973,1711733443053,-1694.73,0.00052054,120]
[320995974,1711733443062,-757.28,0.00052054,120]
[320995975,1711733443072,-500.0,0.00052054,120]
[320995976,1711733443081,-610.8,0.00052054,120]
[320995977,1711733443091,-743.5,0.00052054,120]
[320995978,1711733443101,-1638.02,0.00052054,120]
[320995979,1711733443110,-525.99,0.00052054,120]
[320995980,1711733443120,-2515.62,0.00052054,120]
[320995981,1711733443130,-1206.32,0.00052054,120]
[320995982,1711733443139,-2573.87,0.00052054,120]
[320995983,1711733443148,-926.07,0.00052054,120]
[320995984,1711733443157,-754.09,0.00052054,120]
[320995985,1711733443167,-1066.2,0.00052054,120]
[320995986,1711733443176,-500.0,0.00052054,120]
[320995987,1711733443185,-500.0,0.00052054,120]
[320995988,1711733443199,-500.0,0.00052054,120]
[320995989,1711733443208,-526.41,0.00052054,120]
[320995990,1711733443218,-6569.9,0.00052054,120]
[320995991,1711733443229,-500.0,0.00052054,120]
[320995992,1711733443239,-2598.06,0.00052054,120]
[320995993,1711733443248,-500.0,0.00052054,120]
[320995994,1711733443258,-500.0,0.00052054,120]
[320995995,1711733443268,-500.0,0.00052054,120]
[320995996,1711733443277,-500.0,0.00052054,120]
[320995997,1711733443287,-5181.69,0.00052054,120]
[320995998,1711733443298,-3542.69,0.00052054,120]
[320995999,1711733443307,-515.19154261,0.00052054,120]
[320996000,1711733443316,-2193.82,0.00052054,120]
[320996001,1711733443326,-2126.16,0.00052054,120]
[320996002,1711733443335,-500.0,0.00052054,120]
[320996003,1711733443344,-500.0,0.00052054,120]
[320996004,1711733443353,-500.0,0.00052054,120]
[320996005,1711733443363,-500.0,0.00052054,120]
[320996006,1711733443372,-972.99,0.00052054,120]
[320996007,1711733443381,-500.0,0.00052054,120]
[320996008,1711733443390,-10000.0,0.00052054,2]
[320996009,1711733443400,-3036.83,0.00052054,120]
[320996010,1711733443409,-1580.32,0.00052054,120]
[320996011,1711733443418,-1170.93,0.00052054,120]
[320996012,1711733443427,-500.0,0.00052054,120]
[320996013,1711733443437,-1352.18,0.00052054,120]
[320996014,1711733443445,-1948.63,0.00052054,120]
[320996015,1711733443455,-8379.08,0.00052054,120]
[320996016,1711733443464,-500.0,0.00052054,120]
[320996017,1711733443475,-2489.11,0.00052054,120]
[320996018,1711733443485,-500.0,0.00052054,120]
[320996019,1711733443494,-2001.17,0.00052054,120]
[320996020,1711733443503,-500.0,0.00052054,120]
[320996021,1711733443512,-524.09694199,0.00052054,120]
[320996022,1711733443523,-3494.06,0.00052054,120]
[320996023,1711733443532,-2065.36,0.00052054,120]
[320996024,1711733443541,-852.21,0.00052054,120]
[320996025,1711733443550,-500.0,0.00052054,120]
[320996026,1711733443559,-1286.17,0.00052054,120]
[320996027,1711733443569,-551.1,0.00052054,120]
[320996028,1711733443578,-500.0,0.00052054,120]
[320996029,1711733443587,-514.09,0.00052054,120]
[320996030,1711733443596,-777.28,0.00052054,120]
[320996031,1711733443605,-500.0,0.00052054,120]
[320996032,1711733443615,-500.0,0.00052054,120]
[320996033,1711733443624,-590.81679913,0.00052054,120]
[320996034,1711733443633,-500.0,0.00052054,120]
[320996035,1711733443642,-500.0,0.00052054,120]
[320996036,1711733443652,-598.91,0.00052054,120]
[320996037,1711733443661,-500.0,0.00052054,120]
[320996038,1711733443670,-2047.17,0.00052054,120]
[320996039,1711733443679,-500.0,0.00052054,120]
[320996040,1711733443688,-500.0,0.00052054,120]
[320996041,1711733443698,-5403.33,0.00052054,120]
[320996042,1711733443707,-500.0,0.00052054,120]
[320996043,1711733443717,-500.0,0.00052054,120]
[320996044,1711733443728,-500.0,0.00052054,120]
[320996045,1711733443737,-1345.18,0.00052054,120]
[320996046,1711733443746,-505.35626136,0.00052054,120]
[320996047,1711733443755,-3051.85,0.00052054,21]
[320996048,1711733443765,-500.0,0.00052054,120]
[320996049,1711733443774,-2657.28,0.00052054,120]
[320996050,1711733443784,-500.0,0.00052054,120]
[320996051,1711733443794,-500.0,0.00052054,120]
[320996052,1711733443803,-2308.21,0.00052054,120]
[320996053,1711733443812,-500.0,0.00052054,120]
[320996054,1711733443821,-3170.62,0.00052054,120]
[320996055,1711733443831,-1628.44,0.00052054,120]
[320996056,1711733443841,-500.0,0.00052054,120]
[320996057,1711733443850,-526.83,0.00052054,120]
[320996058,1711733443860,-2287.3,0.00052054,120]
[320996059,1711733443869,-687.11,0.00052054,120]
[320996060,1711733443879,-500.0,0.00052054,120]
[320996061,1711733443888,-500.0,0.00052054,120]
[320996062,1711733443897,-500.0,0.00052054,120]
[320996063,1711733443907,-500.0,0.00052054,120]
[320996064,1711733443916,-2661.84,0.00052054,120]
[320996065,1711733443925,-693.15,0.00052054,120]
[320996066,1711733443934,-500.0,0.00052054,120]
[320996067,1711733443943,-500.0,0.00052054,120]
[320996068,1711733443952,-526.23,0.00052054,120]
[320996069,1711733443962,-500.0,0.00052054,120]
[320996070,1711733443973,-500.0,0.00052054,120]
[320996071,1711733443982,-500.0,0.00052054,120]
[320996072,1711733443992,-526.75,0.00052054,120]
[320996073,1711733444001,-500.0,0.00052054,120]
[320996074,1711733444010,-748.38,0.00052054,120]
[320996075,1711733444019,-500.0,0.00052054,120]
[320996076,1711733444029,-500.0,0.00052054,120]
[320996077,1711733444038,-2030.14,0.00052054,120]
[320996078,1711733444048,-580.39,0.00052054,120]
[320996079,1711733444057,-2219.51,0.00052054,120]
[320996080,1711733444066,-500.0,0.00052054,120]
[320996081,1711733444075,-1609.56,0.00052054,120]
[320996082,1711733444085,-500.0,0.00052054,120]
[320996083,1711733444094,-500.0,0.00052054,120]
[320996084,1711733444102,-500.0,0.00052054,120]
[320996085,1711733444111,-500.0,0.00052054,120]
[320996086,1711733444122,-2805.83,0.00052054,120]
[320996087,1711733444132,-4237.58,0.00052054,120]
[320996088,1711733444141,-578.12,0.00052054,120]
[320996089,1711733444151,-500.0,0.00052054,120]
[320996090,1711733444160,-500.0,0.00052054,120]
[320996091,1711733444169,-500.0,0.00052054,120]
[320996092,1711733444178,-500.0,0.00052054,120]
[320996093,1711733444188,-1000.0,0.00052055,120]
[320996094,1711733444198,-152.29279756,0.00052083,60]
[320996095,1711733444209,-174.3975,0.00052095,30]
[320996096,1711733444219,-168.58888889,0.00052219,120]
[320996097,1711733444228,-203.04403711,0.00052228,2]
[320996098,1711733444239,-4175.18925501,0.00052228,2]
[320996099,1711733444248,-183.64012445,0.00052228,2]
[320996100,1711733444257,-1000.0,0.00052283,120]
[320996101,1711733444266,-150.5,0.00052298,15]
[320996102,1711733444277,-150.5,0.00052298,15]
[320996103,1711733444288,-5000.0,0.000523,120]
[320996104,1711733444298,-150.5,0.00052308,15]
[320996105,1711733444307,-150.5,0.00052308,15]
[320996106,1711733444316,-150.5,0.00052318,15]
[320996107,1711733444325,-150.5,0.00052318,15]
[320996108,1711733444334,-460808.35454917,0.00052328,36]
[320996109,1711733444356,-263.39999868,0.00052328,36]
[320996110,1711733444456,-0.79836456,0.00052328,36]
[320996111,1711733444475,-500.0,0.00052054,120]
[320996112,1711733444485,-22227.16839111,0.00052328,36]
[320996113,1711733444497,-8794.21135585,0.00052328,36]
[320996114,1711733444532,-4302.14135491,0.00052328,36]
[320996115,1711733444845,-193.26387094,0.00038573,4]
[320996116,1711733444854,-500.0,0.00052054,120]
[320996117,1711733444863,-141.88300286,0.00052328,36]
[320996118,1711733444875,-524.42375445,0.00052328,36]
[320996119,1711733444886,-364.82553778,0.00052328,36]
[320996120,1711733444898,-41240.4201296,0.00052328,36]
[320996121,1711733444913,-564.02295352,0.00052054,120]
[320996122,1711733444922,-77.46704648,0.00052328,36]
[320996125,1711733445365,-500.0,0.00052054,120]
[320996126,1711733445374,-500.0,0.00052054,120]
[320996127,1711733445383,-500.0,0.00052054,120]
[320996128,1711733445392,-2573.07210625,0.00052328,36]
[320996129,1711733445404,-2121.98226946,0.00052328,36]
[320996130,1711733445415,-634.48094071,0.00052328,36]
[320996133,1711733445747,-3757.73393676,0.00052328,36]
[320996134,1711733445759,-1805.43598362,0.00052328,36]
[320996136,1711733446651,-1875.273387,0.00052053,30]
[320996137,1711733446715,-0.03217314,0.00052053,30]
[320996139,1711733462116,267.36927419,0.00024,2]
[320996168,1711734237233,153.0450708,0.0003,10]
[320996197,1711734547144,-2318.6515701,0.00032976,4]
[320996198,1711734547165,-250.0,0.00033,3]
[320996199,1711734547188,-239.57939079,0.00035,3]
[320996200,1711734555104,-500.0,0.00032975,2]
[320996201,1711734558089,-45.26682314,0.00032975,2]
[320996202,1711734558109,-60.42060921,0.00035,3]
[320996203,1711734558130,-350.0,0.00037,3]
[320996204,1711734558148,-177.67,0.00038356,2]
[320996205,1711734558167,-400.0,0.00038472,2]
[320996206,1711734558188,-495.92071811,0.00038472,4]
[320996207,1711734558209,-554.85409526,0.00038472,4]
[320996208,1711734558228,-176.45993283,0.00038472,4]
[320996209,1711734558247,-2594.6177927,0.00038472,4]
[320996210,1711734558265,-279.66686747,0.00038472,4]
[320996211,1711734558287,-248.79434329,0.00038472,4]
[320996212,1711734558306,-925.39771655,0.00038472,4]
[320996213,1711734558325,-573.8194,0.00038472,4]
[320996214,1711734558345,-859.57814569,0.00038473,2]
[320996215,1711734558364,-9419.9772,0.00038474,2]
[320996216,1711734558384,-3429.83837973,0.00038474,2]
[320996217,1711734573154,-371.82940163,0.00038472,2]
[320996218,1711734573178,-1623.05609907,0.00038473,4]
[320996219,1711734573200,-1337.546489,0.00038474,2]
[320996248,1711734631766,-1143.34416664,0.00032974,4]
[320996252,1711734631788,-10954.61119757,0.00032974,4]
[320996255,1711734631798,-95232.61513127,0.00038474,2]
[320996257,1711734631809,-1000.0,0.00038474,2]
[320996259,1711734631818,-150.99,0.00038474,2]
[320996261,1711734631828,-155.42805656,0.00038574,2]
[320996263,1711734631838,-6573.42,0.00038574,2]
[320996265,1711734631847,-499.99,0.00038574,2]
[320996267,1711734631857,-368.0,0.000386,2]
[320996269,1711734631867,-400.0,0.00039,3]
[320996271,1711734631878,-192.22165366,0.0004,2]
[320996273,1711734631888,-250.0,0.00042771,2]
[320996275,1711734631899,-250.0,0.00042771,2]
[320996278,1711734631909,-160.15,0.00042771,15]
[320996280,1711734631921,-245.39,0.00044141,2]
[320996281,1711734631931,-512.48,0.00046458,2]
[320996282,1711734631942,-177.67,0.00046575,2]
[320996283,1711734631951,-167.67,0.00046962,2]
[320996284,1711734631962,-151.79,0.00047136,2]
[320996285,1711734631973,-250.0,0.00047277,112]
[320996286,1711734631983,-500.0,0.00047292,2]
[320996288,1711734631995,-4046.38283962,0.00047368,2]
[320996290,1711734632005,-717.36,0.00047373,120]
[320996292,1711734632016,-1854.92125608,0.00047392,4]
[320996293,1711734632026,-212.98,0.00047393,2]
[320996294,1711734632037,-23890.0,0.00047394,2]
[320996295,1711734632047,-1000.0,0.00047468,2]
[320996296,1711734632058,-153.30888088,0.00047472,30]
[320996297,1711734632068,-937.24,0.00047635,2]
[320996298,1711734632077,-155.12100314,0.00047918,30]
[320996299,1711734632086,-174.14,0.00047921,2]
[320996300,1711734632095,-14459.15,0.00048,2]
[320996301,1711734632105,-151.0,0.00048,120]
[320996303,1711734632114,-428.56,0.00048395,2]